[Event "1st SOA-GM Festival 2024"]
[Site "Bhubaneswar"]
[Date "2024.02.01"]
[Round "5.5"]
[White "Ghosh, Diptayan"]
[Black "Rajesh, V A V"]
[Result "1-0"]
[WhiteElo "2568"]
[BlackElo "2331"]
[PlyCount "117"]
[EventDate "2024.02.01"]
[EventType "swiss"]
[EventCountry "IND"]
[TimeControl "5400+30"]

1. Nf3 {[%emt 0:00:23]} Nf6 {[%emt 0:00:06]} 2. g3 {[%emt 0:00:04]} b6 {[%emt 0:00:44]} 3. Bg2 {[%emt 0:01:28]} Bb7 {[%emt 0:00:05]} 4. O-O {[%emt 0:00:23]} e6 {[%emt 0:00:05]} 5. c4 {[%emt 0:00:13]} d5 {[%emt 0:02:18]} 6. cxd5 {[%emt 0:01:35]} exd5 {[%emt 0:00:07]} 7. Nc3 {[%emt 0:01:17]} Nbd7 {[%emt 0:02:32]} 8. d4 {[%emt 0:05:57]} c6 {[%emt 0:03:17]} 9. Nh4 {[%emt 0:07:07]} Be7 {[%emt 0:01:26]} 10. Nf5 {[%emt 0:01:16]} O-O {[%emt 0:00:32]} 11. Bf4 {[%emt 0:01:22]} Re8 {[%emt 0:01:22]} 12. Rc1 {[%emt 0:08:41]} Bf8 {[%emt 0:03:47]} 13. Re1 {[%emt 0:13:06]} Nh5 {[%emt 0:09:33]} 14. Bd6 {[%emt 0:05:42]} g6 {[%emt 0:05:05]} 15. Bxf8 {[%emt 0:02:34]} Nxf8 {[%emt 0:00:05]} 16. Nh6+ {[%emt 0:00:42]} Kg7 {[%emt 0:00:07]} 17. Ng4 {[%emt 0:00:07]} Ne6 {[%emt 0:08:31]} 18. e3 {[%emt 0:03:18]} Nf6 {[%emt 0:05:58]} 19. Ne5 {[%emt 0:02:57]} c5 {[%emt 0:03:26]} 20. Qa4 {[%emt 0:05:58]} a6 {[%emt 0:06:14]} 21. dxc5 {[%emt 0:04:19]} Nxc5 {[%emt 0:02:36]} 22. Qd4 {[%emt 0:00:23]} Ne6 {[%emt 0:00:28]} 23. Qd2 {[%emt 0:05:05]} Nc5 {[%emt 0:05:17]} 24. Nf3 {[%emt 0:00:53]} Nfe4 {[%emt 0:03:32]} 25. Qd4+ {[%emt 0:00:16]} Qf6 {[%emt 0:00:19]} 26. Red1 {[%emt 0:00:32]} Rad8 {[%emt 0:03:59]} 27. Qxf6+ {[%emt 0:01:49]} Kxf6 {[%emt 0:00:13]} 28. Nd4 {[%emt 0:01:36]} Rd6 {[%emt 0:07:34]} 29. h4 {[%emt 0:05:03]} Red8 {[%emt 0:01:04]} 30. Nce2 {[%emt 0:04:37]} Ke7 {[%emt 0:04:16]} 31. Bh3 {[%emt 0:00:59]} Nf6 {[%emt 0:05:47]} 32. Nf4 {[%emt 0:02:43]} Ne8 {[%emt 0:00:11]} 33. Nd3 {[%emt 0:02:20]} Nxd3 {[%emt 0:05:49]} 34. Rxd3 {[%emt 0:00:05]} Rb8 {[%emt 0:00:05]} 35. Rdc3 {[%emt 0:00:17]} Kd8 {[%emt 0:00:49]} 36. b4 {[%emt 0:03:02]} b5 {[%emt 0:01:00]} 37. Nb3 {[%emt 0:02:36]} f5 {[%emt 0:01:00]} 38. Bg2 {[%emt 0:01:03]} Rc8 {[%emt 0:03:05]} 39. Nc5 {[%emt 0:00:44]} Rc7 {[%emt 0:00:07]} 40. Kf1 {[%emt 0:01:22]} Bc8 {[%emt 0:00:18]} 41. Rd1 {[%emt 0:01:07]} Nf6 {[%emt 0:00:16]} 42. Ke1 {[%emt 0:01:20]} Ke7 {[%emt 0:00:32]} 43. Rcd3 {[%emt 0:00:23]} Be6 {[%emt 0:00:21]} 44. Ra3 {[%emt 0:00:19]} Nd7 {[%emt 0:00:50]} 45. Nxe6 {[%emt 0:03:07]} Kxe6 {[%emt 0:00:09]} 46. Bxd5+ {[%emt 0:00:41]} Ke7 {[%emt 0:02:39]} 47. Bg2 {[%emt 0:00:24]} Rb6 {[%emt 0:00:21]} 48. Rad3 {[%emt 0:00:34]} Ne5 {[%emt 0:01:56]} 49. Rd5 {[%emt 0:00:06]} Nc4 {[%emt 0:00:15]} 50. h5 {[%emt 0:01:58]} Na3 {[%emt 0:00:21]} 51. Rc5 {[%emt 0:00:31]} Rd7 {[%emt 0:00:26]} 52. Rxd7+ {[%emt 0:00:28]} Kxd7 {[%emt 0:00:05]} 53. Bd5 {[%emt 0:00:12]} gxh5 {[%emt 0:00:23]} 54. Bb3 {[%emt 0:00:19]} Rf6 {[%emt 0:00:07]} 55. Ke2 {[%emt 0:00:15]} h4 {[%emt 0:01:00]} 56. gxh4 {[%emt 0:00:04]} Rh6 {[%emt 0:00:04]} 57. Rd5+ {[%emt 0:00:30]} Kc6 {[%emt 0:00:27]} 58. Rd4 {[%emt 0:00:17]} Rd6 {[%emt 0:00:42]} 59. Kd3 {[%emt 0:00:54]} 1-0

[Event "1st SOA-GM Festival 2024"]
[Site "Bhubaneswar"]
[Date "2024.02.01"]
[Round "5.6"]
[White "Aquino, Jethro Dino"]
[Black "Das, Sayantan"]
[Result "0-1"]
[WhiteElo "2166"]
[BlackElo "2514"]
[PlyCount "76"]
[EventDate "2024.02.01"]
[EventType "swiss"]
[EventCountry "IND"]
[TimeControl "5400+30"]

1. e4 {[%emt 0:00:05]} c6 {[%emt 0:00:23]} 2. d4 {[%emt 0:00:30]} d5 {[%emt 0:00:05]} 3. f3 {[%emt 0:00:54]} Qb6 {[%emt 0:00:18]} 4. Nc3 {[%emt 0:00:18]} dxe4 {[%emt 0:00:27]} 5. Bc4 {[%emt 0:00:45]} Nf6 {[%emt 0:00:32]} 6. fxe4 {[%emt 0:00:39]} e5 {[%emt 0:00:25]} 7. dxe5 {[%emt 0:00:50]} Ng4 {[%emt 0:00:08]} 8. Qe2 {[%emt 0:00:20]} Nxe5 {[%emt 0:00:07]} 9. Bb3 {[%emt 0:00:38]} Bg4 {[%emt 0:00:33]} 10. Nf3 {[%emt 0:00:13]} Nbd7 {[%emt 0:00:05]} 11. Bd2 {[%emt 0:03:35]} O-O-O {[%emt 0:03:52]} 12. h3 {[%emt 0:06:03]} Nxf3+ {[%emt 0:04:14]} 13. gxf3 {[%emt 0:00:26]} Bh5 {[%emt 0:00:05]} 14. O-O-O {[%emt 0:00:34]} Ne5 {[%emt 0:01:14]} 15. Rhf1 {[%emt 0:03:47]} Bb4 {[%emt 0:00:27]} 16. Be3 {[%emt 0:14:01]} Qa5 {[%emt 0:06:24]} 17. Rd5 {[%emt 1:05:22]} Rd7 18. Rxd7 {[%emt 0:00:00]} Rf8 {[%emt 1:20:11]} 19. Rd8+ Rxd8 {[%emt 0:00:00]} 20. Nb1 {[%emt 0:00:00]} h6 {[%emt 0:00:00]} 21. a3 {[%emt 0:00:00]} Be7 {[%emt 0:00:00]} 22. Nd2 {[%emt 0:00:00]} g5 {[%emt 0:00:00]} 23. Qf2 {[%emt 0:00:00]} Qb5 {[%emt 0:00:00]} 24. a4 {[%emt 0:00:00]} Qa5 {[%emt 0:00:00]} 25. f4 {[%emt 0:00:00]} gxf4 {[%emt 0:00:00]} 26. Bxf4 {[%emt 0:00:00]} Bg5 {[%emt 0:00:00]} 27. Kb1 {[%emt 0:00:00]} Bxf4 {[%emt 0:00:00]} 28. Qxf4 {[%emt 0:00:00]} Be2 {[%emt 0:00:00]} 29. Qf5+ {[%emt 0:00:00]} Kc7 {[%emt 0:00:00]} 30. Nf3 {[%emt 0:00:00]} Bxf3 {[%emt 0:00:00]} 31. Rxf3 {[%emt 0:00:00]} Qe1+ {[%emt 0:00:00]} 32. Ka2 {[%emt 0:00:00]} Nxf3 {[%emt 0:00:00]} 33. Qxf7+ {[%emt 0:00:00]} Kb6 {[%emt 0:00:00]} 34. Qxf3 {[%emt 0:00:00]} Rd1 {[%emt 0:00:00]} 35. Bc4 {[%emt 0:00:00]} Ra1+ {[%emt 0:00:00]} 36. Kb3 {[%emt 0:00:00]} a5 {[%emt 0:00:00]} 37. Qf8 {[%emt 0:00:00]} Qe3+ {[%emt 0:00:00]} 38. c3 {[%emt 0:00:00]} Qd2 {[%emt 0:00:00]} 0-1

[Event "1st SOA-GM Festival 2024"]
[Site "Bhubaneswar"]
[Date "2024.02.01"]
[Round "5.7"]
[White "Dhananjay S"]
[Black "Neelash Saha"]
[Result "1/2-1/2"]
[WhiteElo "2151"]
[BlackElo "2446"]
[PlyCount "127"]
[EventDate "2024.02.01"]
[EventType "swiss"]
[EventCountry "IND"]
[TimeControl "5400+30"]

1. c4 {[%emt 0:00:37]} e6 {[%emt 0:00:14]} 2. g3 {[%emt 0:00:10]} d5 {[%emt 0:00:21]} 3. Bg2 {[%emt 0:00:04]} Nf6 {[%emt 0:01:45]} 4. Nf3 {[%emt 0:00:09]} Be7 {[%emt 0:00:06]} 5. O-O {[%emt 0:00:18]} O-O {[%emt 0:00:09]} 6. b3 {[%emt 0:00:03]} b6 {[%emt 0:01:55]} 7. Nc3 {[%emt 0:01:56]} c6 {[%emt 0:02:34]} 8. d4 {[%emt 0:00:16]} Ba6 {[%emt 0:00:52]} 9. Nd2 {[%emt 0:13:59]} Nbd7 {[%emt 0:15:22]} 10. Re1 {[%emt 0:09:28]} c5 {[%emt 0:18:16]} 11. dxc5 {[%emt 0:03:15]} Bxc5 {[%emt 0:00:05]} 12. Bb2 {[%emt 0:09:20]} Ng4 {[%emt 0:07:37]} 13. e3 {[%emt 0:00:41]} Nge5 {[%emt 0:00:41]} 14. Qe2 {[%emt 0:16:04]} Rc8 {[%emt 0:01:52]} 15. f4 {[%emt 0:05:37]} Nc6 {[%emt 0:05:06]} 16. a3 {[%emt 0:05:20]} Be7 {[%emt 0:01:02]} 17. b4 {[%emt 0:02:41]} Bxc4 {[%emt 0:04:13]} 18. Nxc4 {[%emt 0:00:05]} dxc4 {[%emt 0:00:02]} 19. Red1 {[%emt 0:04:10]} Ncb8 {[%emt 0:01:40]} 20. Rd4 {[%emt 0:09:13]} b5 {[%emt 0:04:27]} 21. Rad1 {[%emt 0:02:30]} a6 {[%emt 0:01:21]} 22. f5 {[%emt 0:12:35]} Qe8 {[%emt 0:05:50]} 23. fxe6 {[%emt 0:00:21]} fxe6 {[%emt 0:00:04]} 24. Bh3 {[%emt 0:01:35]} Rf6 {[%emt 0:00:37]} 25. Ne4 {[%emt 0:01:24]} Rh6 {[%emt 0:00:23]} 26. Bg2 {[%emt 0:00:48]} Rc7 {[%emt 0:04:15]} 27. Bc3 {[%emt 0:00:41]} Nc6 {[%emt 0:04:05]} 28. R4d2 {[%emt 0:00:22]} Nce5 {[%emt 0:00:25]} 29. Nf2 {[%emt 0:00:25]} Qh5 {[%emt 0:05:16]} 30. Qxh5 {[%emt 0:00:08]} Rxh5 {[%emt 0:00:05]} 31. h4 {[%emt 0:01:05]} g5 {[%emt 0:02:37]} 32. hxg5 {[%emt 0:00:31]} Rxg5 {[%emt 0:01:28]} 33. Kh2 {[%emt 0:00:29]} Nf6 {[%emt 0:00:58]} 34. Nh3 {[%emt 0:00:22]} Rf5 {[%emt 0:02:59]} 35. Re2 {[%emt 0:00:20]} Nf3+ {[%emt 0:01:32]} 36. Bxf3 {[%emt 0:00:07]} Rxf3 {[%emt 0:00:04]} 37. Kg2 {[%emt 0:00:03]} Rxg3+ {[%emt 0:00:53]} 38. Kxg3 {[%emt 0:00:03]} Ne4+ {[%emt 0:00:04]} 39. Kf3 {[%emt 0:00:27]} Nxc3 {[%emt 0:00:03]} 40. Rg1+ {[%emt 0:00:04]} Kf8 {[%emt 0:00:41]} 41. Rc2 {[%emt 0:01:11]} Nd5 {[%emt 0:00:54]} 42. Nf4 {[%emt 0:00:09]} Nxf4 {[%emt 0:00:08]} 43. Kxf4 {[%emt 0:00:05]} Bf6 {[%emt 0:01:02]} 44. Ke4 {[%emt 0:01:04]} h5 {[%emt 0:01:01]} 45. Rf1 Rf7 {[%emt 0:00:05]} 46. Rcf2 {[%emt 0:01:32]} Ke7 {[%emt 0:00:04]} 47. Rf3 {[%emt 0:00:13]} Rf8 {[%emt 0:01:33]} 48. R1f2 {[%emt 0:00:04]} h4 {[%emt 0:00:20]} 49. Rf1 {[%emt 0:01:04]} c3 {[%emt 0:01:12]} 50. R1f2 {[%emt 0:00:28]} Bg7 {[%emt 0:02:04]} 51. Rxf8 {[%emt 0:00:14]} Bxf8 {[%emt 0:00:04]} 52. Kf4 {[%emt 0:01:51]} Bh6+ {[%emt 0:00:13]} 53. Kf3 {[%emt 0:00:10]} Kd6 {[%emt 0:01:09]} 54. Ke4 {[%emt 0:00:36]} Bg7 {[%emt 0:00:37]} 55. Kd3 {[%emt 0:00:09]} Be5 {[%emt 0:00:23]} 56. Rf3 {[%emt 0:00:22]} Ke7 {[%emt 0:01:36]} 57. e4 {[%emt 0:01:00]} Kd6 {[%emt 0:00:09]} 58. Kc2 {[%emt 0:00:34]} Kc6 {[%emt 0:02:30]} 59. Kd3 {[%emt 0:00:04]} Kb6 {[%emt 0:00:40]} 60. Kc2 {[%emt 0:00:39]} Kc7 {[%emt 0:00:29]} 61. Kd3 {[%emt 0:00:02]} Kd6 {[%emt 0:00:04]} 62. Kc2 {[%emt 0:00:41]} Ke7 {[%emt 0:00:07]} 63. Kd3 {[%emt 0:00:02]} Bf6 {[%emt 0:00:33]} 64. Kc2 {[%emt 0:00:25]} 1/2-1/2

[Event "1st SOA-GM Festival 2024"]
[Site "Bhubaneswar"]
[Date "2024.02.01"]
[Round "5.8"]
[White "Priansh Das"]
[Black "Panda Sambit"]
[Result "1/2-1/2"]
[WhiteElo "1910"]
[BlackElo "2404"]
[PlyCount "60"]
[EventDate "2024.02.01"]
[EventType "swiss"]
[EventCountry "IND"]
[TimeControl "5400+30"]

1. c4 {[%emt 0:00:02]} e6 {[%emt 0:10:38]} 2. g3 {[%emt 0:00:07]} d5 {[%emt 0:00:04]} 3. Bg2 {[%emt 0:00:48]} d4 {[%emt 0:00:59]} 4. d3 {[%emt 0:00:37]} Nf6 {[%emt 0:00:17]} 5. Nf3 {[%emt 0:00:18]} c5 {[%emt 0:01:11]} 6. e3 {[%emt 0:01:42]} Nc6 {[%emt 0:00:14]} 7. exd4 {[%emt 0:00:22]} cxd4 {[%emt 0:00:06]} 8. O-O {[%emt 0:00:09]} Bc5 {[%emt 0:00:05]} 9. Re1 {[%emt 0:01:10]} h6 {[%emt 0:05:33]} 10. Nbd2 {[%emt 0:02:27]} O-O {[%emt 0:02:26]} 11. Rb1 {[%emt 0:08:40]} Re8 {[%emt 0:08:04]} 12. Ne5 {[%emt 0:05:42]} Nxe5 {[%emt 0:09:29]} 13. Rxe5 {[%emt 0:00:22]} Qc7 {[%emt 0:00:29]} 14. Re1 {[%emt 0:01:10]} e5 {[%emt 0:12:51]} 15. b4 {[%emt 0:01:56]} Bf8 {[%emt 0:02:08]} 16. Ne4 {[%emt 0:05:28]} Nxe4 {[%emt 0:03:14]} 17. Bxe4 {[%emt 0:01:05]} f5 {[%emt 0:00:55]} 18. Qh5 {[%emt 0:05:59]} Qf7 {[%emt 0:18:24]} 19. Bd5 {[%emt 0:00:45]} Be6 {[%emt 0:00:05]} 20. Qxf7+ {[%emt 0:00:11]} Bxf7 {[%emt 0:00:05]} 21. Bxb7 {[%emt 0:01:12]} Rab8 {[%emt 0:00:01]} 22. Bc6 {[%emt 0:01:12]} Rxb4 {[%emt 0:00:13]} 23. Bd2 {[%emt 0:11:23]} Rxb1 {[%emt 0:01:22]} 24. Rxb1 {[%emt 0:00:07]} Rd8 {[%emt 0:03:41]} 25. Ba5 {[%emt 0:06:30]} Rd6 {[%emt 0:00:42]} 26. Bb7 {[%emt 0:00:50]} Rf6 {[%emt 0:03:56]} 27. Bd8 {[%emt 0:07:47]} Re6 {[%emt 0:00:40]} 28. f3 {[%emt 0:08:37]} Re8 {[%emt 0:04:58]} 29. Ba5 {[%emt 0:00:48]} e4 {[%emt 0:07:56]} 30. fxe4 {[%emt 0:02:27]} fxe4 {[%emt 0:00:06]} 1/2-1/2

[Event "1st SOA-GM Festival 2024"]
[Site "Bhubaneswar"]
[Date "2024.02.01"]
[Round "5.9"]
[White "Ritviz, Parab"]
[Black "Nikhil Magizhnan"]
[Result "1-0"]
[WhiteElo "2391"]
[BlackElo "1994"]
[PlyCount "71"]
[EventDate "2024.02.01"]
[EventType "swiss"]
[EventCountry "IND"]
[TimeControl "5400+30"]

1. e4 {[%emt 0:00:15]} c5 {[%emt 0:00:31]} 2. Nc3 {[%emt 0:00:23]} Nc6 {[%emt 0:01:05]} 3. Bb5 {[%emt 0:00:30]} Nd4 {[%emt 0:02:57]} 4. Bc4 {[%emt 0:00:16]} g6 {[%emt 0:01:16]} 5. Nge2 {[%emt 0:10:49]} Bg7 {[%emt 0:00:09]} 6. Nxd4 {[%emt 0:04:52]} cxd4 {[%emt 0:01:13]} 7. Qf3 {[%emt 0:03:28]} Nh6 {[%emt 0:09:26]} 8. Ne2 {[%emt 0:02:02]} O-O {[%emt 0:02:00]} 9. d3 {[%emt 0:02:22]} e5 {[%emt 0:15:28]} 10. Qg3 {[%emt 0:26:01]} d6 {[%emt 0:01:53]} 11. h4 {[%emt 0:11:53]} Ng4 {[%emt 0:08:49]} 12. h5 {[%emt 0:01:29]} g5 {[%emt 0:03:08]} 13. h6 {[%emt 0:00:55]} Bf6 {[%emt 0:00:50]} 14. Qf3 {[%emt 0:01:21]} Kh8 {[%emt 0:07:50]} 15. Ng3 {[%emt 0:01:16]} Be7 {[%emt 0:02:34]} 16. Nf5 {[%emt 0:06:22]} Bxf5 {[%emt 0:00:24]} 17. exf5 {[%emt 0:03:34]} Nf6 {[%emt 0:13:09]} 18. Bxg5 {[%emt 0:00:10]} b5 {[%emt 0:05:39]} 19. Bb3 {[%emt 0:03:38]} a5 {[%emt 0:04:53]} 20. a4 {[%emt 0:01:42]} bxa4 {[%emt 0:00:43]} 21. Rxa4 {[%emt 0:06:24]} Nd7 {[%emt 0:02:05]} 22. Bxe7 {[%emt 0:01:19]} Qxe7 {[%emt 0:00:04]} 23. Bd5 {[%emt 0:02:52]} Ra7 {[%emt 0:00:02]} 24. O-O {[%emt 0:02:06]} Nb6 {[%emt 0:07:34]} 25. Ra3 {[%emt 0:06:00]} Qf6 {[%emt 0:00:12]} 26. Rb3 {[%emt 0:00:39]} Nd7 {[%emt 0:04:26]} 27. Qh5 {[%emt 0:00:24]} Nc5 {[%emt 0:01:33]} 28. Rb6 {[%emt 0:00:44]} Qe7 {[%emt 0:00:58]} 29. Ra1 {[%emt 0:00:29]} Nd7 {[%emt 0:00:26]} 30. Rc6 {[%emt 0:00:29]} Nf6 {[%emt 0:00:37]} 31. Qg5 {[%emt 0:00:22]} Rg8 {[%emt 0:02:11]} 32. Rc8 {[%emt 0:00:04]} Ne8 {[%emt 0:00:30]} 33. Qxe7 {[%emt 0:00:41]} Rxe7 {[%emt 0:00:03]} 34. Rxa5 {[%emt 0:00:11]} Nf6 {[%emt 0:00:26]} 35. Raa8 {[%emt 0:00:17]} Rc7 {[%emt 0:00:37]} 36. Rxc7 {[%emt 0:00:13]} 1-0

[Event "1st SOA-GM Festival 2024"]
[Site "Bhubaneswar"]
[Date "2024.02.01"]
[Round "5.10"]
[White "Jake Shanty"]
[Black "Nguyen Van Huy"]
[Result "0-1"]
[WhiteElo "1903"]
[BlackElo "2364"]
[PlyCount "86"]
[EventDate "2024.02.01"]
[EventType "swiss"]
[EventCountry "IND"]
[TimeControl "5400+30"]

1. Nf3 {[%emt 0:00:04]} Nf6 {[%emt 0:00:46]} 2. b3 {[%emt 0:00:27]} d5 {[%emt 0:01:06]} 3. Bb2 {[%emt 0:00:39]} Bg4 {[%emt 0:01:15]} 4. e3 {[%emt 0:02:06]} Nbd7 {[%emt 0:01:12]} 5. d4 {[%emt 0:09:37]} e6 {[%emt 0:01:34]} 6. Be2 {[%emt 0:06:28]} Bb4+ {[%emt 0:01:31]} 7. c3 {[%emt 0:01:19]} Bd6 {[%emt 0:00:54]} 8. Nbd2 {[%emt 0:03:07]} O-O {[%emt 0:03:42]} 9. O-O {[%emt 0:01:28]} Qe7 {[%emt 0:01:59]} 10. c4 {[%emt 0:11:44]} c6 {[%emt 0:01:34]} 11. Ne5 {[%emt 0:15:15]} Bxe2 {[%emt 0:03:52]} 12. Qxe2 {[%emt 0:00:06]} Rfd8 {[%emt 0:01:48]} 13. Nxd7 {[%emt 0:09:53]} Rxd7 {[%emt 0:02:35]} 14. c5 {[%emt 0:06:06]} Bc7 {[%emt 0:01:05]} 15. f4 {[%emt 0:00:31]} Ba5 {[%emt 0:02:01]} 16. Nf3 {[%emt 0:02:54]} Ne4 {[%emt 0:02:27]} 17. a3 {[%emt 0:01:33]} Bc7 {[%emt 0:06:44]} 18. b4 {[%emt 0:03:20]} h6 {[%emt 0:03:08]} 19. Ne1 {[%emt 0:10:46]} f5 {[%emt 0:03:09]} 20. g3 {[%emt 0:02:09]} Kh7 {[%emt 0:01:31]} 21. Nd3 {[%emt 0:05:36]} Rg8 {[%emt 0:01:48]} 22. Nf2 {[%emt 0:02:12]} Nf6 {[%emt 0:02:42]} 23. h3 {[%emt 0:03:28]} g5 {[%emt 0:01:40]} 24. Kh2 {[%emt 0:00:40]} Qe8 {[%emt 0:00:49]} 25. Rg1 {[%emt 0:00:44]} Rdg7 {[%emt 0:00:07]} 26. Rae1 {[%emt 0:00:37]} Nh5 {[%emt 0:07:05]} 27. Nd3 {[%emt 0:00:29]} Kh8 {[%emt 0:01:38]} 28. Qf2 {[%emt 0:00:33]} Nf6 {[%emt 0:01:03]} 29. Qe2 {[%emt 0:00:28]} Ne4 {[%emt 0:00:31]} 30. Ne5 {[%emt 0:00:25]} Bxe5 {[%emt 0:02:12]} 31. fxe5 {[%emt 0:00:15]} h5 {[%emt 0:01:12]} 32. Rg2 {[%emt 0:00:47]} Rh7 {[%emt 0:01:02]} 33. Reg1 {[%emt 0:00:30]} h4 {[%emt 0:00:48]} 34. g4 {[%emt 0:00:23]} Rf8 {[%emt 0:03:48]} 35. gxf5 {[%emt 0:00:41]} Rxf5 {[%emt 0:00:28]} 36. Bc1 {[%emt 0:00:09]} Qf7 {[%emt 0:01:44]} 37. Bd2 {[%emt 0:00:32]} Rf3 {[%emt 0:03:48]} 38. Be1 {[%emt 0:00:44]} Qf5 {[%emt 0:00:26]} 39. Rg4 {[%emt 0:00:13]} Nf2 {[%emt 0:01:51]} 40. Kg2 {[%emt 0:00:34]} Rg3+ {[%emt 0:03:07]} 41. Rxg3 {[%emt 0:00:48]} hxg3 {[%emt 0:00:07]} 42. Bxf2 {[%emt 0:00:25]} Qxh3+ {[%emt 0:00:12]} 43. Kf3 {[%emt 0:00:04]} Rf7# {[%emt 0:00:12]} 0-1

[Event "1st SOA-GM Festival 2024"]
[Site "Bhubaneswar"]
[Date "2024.02.01"]
[Round "5.11"]
[White "Salonika, Saina"]
[Black "Savchenko, Boris"]
[Result "0-1"]
[WhiteElo "2113"]
[BlackElo "2489"]
[PlyCount "52"]
[EventDate "2024.02.01"]
[EventType "swiss"]
[EventCountry "IND"]
[TimeControl "5400+30"]

1. e4 {[%emt 0:00:04]} g6 {[%emt 0:00:05]} 2. d4 {[%emt 0:00:05]} Bg7 {[%emt 0:00:04]} 3. Nc3 {[%emt 0:00:07]} a6 {[%emt 0:00:06]} 4. Be3 {[%emt 0:00:39]} d6 {[%emt 0:01:38]} 5. Qd2 {[%emt 0:01:24]} Nd7 {[%emt 0:01:36]} 6. h4 {[%emt 0:00:04]} h6 {[%emt 0:00:11]} 7. h5 {[%emt 0:04:27]} g5 {[%emt 0:00:07]} 8. a4 {[%emt 0:07:52]} c5 {[%emt 0:12:47]} 9. Nge2 {[%emt 0:17:43]} Ngf6 {[%emt 0:08:05]} 10. f3 {[%emt 0:03:02]} Qa5 {[%emt 0:11:08]} 11. Nc1 {[%emt 0:13:39]} Qc7 {[%emt 0:03:41]} 12. a5 {[%emt 0:06:37]} O-O {[%emt 0:07:16]} 13. Bxg5 {[%emt 0:07:06]} cxd4 {[%emt 0:03:25]} 14. N3e2 {[%emt 0:03:47]} hxg5 {[%emt 0:00:28]} 15. h6 {[%emt 0:00:08]} Nxe4 {[%emt 0:00:23]} 16. fxe4 {[%emt 0:01:34]} Bf6 {[%emt 0:00:31]} 17. Nxd4 {[%emt 0:10:08]} b5 {[%emt 0:03:11]} 18. axb6 {[%emt 0:03:06]} Qxb6 {[%emt 0:02:20]} 19. Ncb3 {[%emt 0:00:05]} a5 {[%emt 0:08:33]} 20. Bc4 {[%emt 0:08:43]} a4 {[%emt 0:08:57]} 21. Nf3 {[%emt 0:01:01]} g4 {[%emt 0:01:45]} 22. Ng5 {[%emt 0:07:59]} Ne5 {[%emt 0:03:22]} 23. Bd5 {[%emt 0:00:07]} Bb7 {[%emt 0:01:11]} 24. Nd4 {[%emt 0:00:23]} Qxb2 {[%emt 0:11:27]} 25. Ke2 {[%emt 0:02:24]} Ba6+ {[%emt 0:00:53]} 26. Ke3 {[%emt 0:00:08]} Bxg5+ {[%emt 0:00:44]} 0-1

[Event "1st SOA-GM Festival 2024"]
[Site "Bhubaneswar"]
[Date "2024.02.01"]
[Round "5.12"]
[White "Sammed Jaykumar, Shete"]
[Black "John Veny Akkarakaran"]
[Result "1/2-1/2"]
[WhiteElo "2441"]
[BlackElo "2112"]
[PlyCount "106"]
[EventDate "2024.02.01"]
[EventType "swiss"]
[EventCountry "IND"]
[TimeControl "5400+30"]

1. e4 {[%emt 0:00:02]} e6 {[%emt 0:00:39]} 2. d4 {[%emt 0:00:22]} d5 {[%emt 0:00:08]} 3. e5 {[%emt 0:00:05]} c5 {[%emt 0:00:08]} 4. c3 {[%emt 0:00:04]} Nc6 {[%emt 0:00:14]} 5. Nf3 {[%emt 0:00:06]} Nge7 {[%emt 0:00:34]} 6. Na3 {[%emt 0:00:21]} cxd4 {[%emt 0:00:22]} 7. cxd4 {[%emt 0:00:08]} Nf5 {[%emt 0:00:35]} 8. Nc2 {[%emt 0:00:07]} Bd7 {[%emt 0:00:43]} 9. Bd3 {[%emt 0:01:23]} Qb6 {[%emt 0:01:02]} 10. O-O {[%emt 0:01:07]} a5 {[%emt 0:00:43]} 11. Bxf5 {[%emt 0:16:03]} exf5 {[%emt 0:00:09]} 12. h4 {[%emt 0:00:23]} h6 {[%emt 0:02:14]} 13. Re1 {[%emt 0:02:39]} Be7 {[%emt 0:04:49]} 14. a3 {[%emt 0:01:11]} Be6 {[%emt 0:02:47]} 15. Bd2 {[%emt 0:04:59]} O-O {[%emt 0:07:48]} 16. Rb1 {[%emt 1:09:30]} a4 {[%emt 0:02:59]} 17. Bf4 {[%emt 0:00:00]} Na5 {[%emt 0:09:24]} 18. Bd2 {[%emt 0:00:00]} Nb3 {[%emt 0:09:25]} 19. Bb4 {[%emt 0:00:00]} Bxb4 {[%emt 0:01:17]} 20. Nxb4 {[%emt 0:00:00]} Rfc8 {[%emt 0:02:54]} 21. Qd3 {[%emt 0:00:00]} f4 {[%emt 0:07:00]} 22. Rbd1 {[%emt 0:00:00]} Rc4 {[%emt 0:02:31]} 23. Kh2 {[%emt 0:00:00]} Qd8 {[%emt 0:06:10]} 24. g3 {[%emt 0:00:00]} fxg3+ {[%emt 0:08:35]} 25. fxg3 {[%emt 0:00:00]} Rac8 {[%emt 0:03:17]} 26. Rf1 {[%emt 0:00:00]} Qd7 {[%emt 0:01:56]} 27. Qe3 {[%emt 0:00:00]} Bf5 {[%emt 0:07:08]} 28. Rf2 {[%emt 0:00:00]} Be4 {[%emt 0:03:26]} 29. Qf4 {[%emt 0:00:00]} Rc1 {[%emt 0:04:40]} 30. Rxc1 {[%emt 0:00:00]} Rxc1 {[%emt 0:00:28]} 31. g4 {[%emt 0:00:00]} Rd1 {[%emt 0:01:34]} 32. Kg3 {[%emt 0:00:00]} Nxd4 {[%emt 0:02:23]} 33. Nxd4 {[%emt 0:00:00]} Rxd4 {[%emt 0:00:09]} 34. Rd2 {[%emt 0:01:10]} Rxd2 {[%emt 0:01:46]} 35. Qxd2 {[%emt 0:00:05]} d4 {[%emt 0:01:06]} 36. Kf4 {[%emt 0:00:06]} Bh7 {[%emt 0:01:01]} 37. Qg2 {[%emt 0:00:39]} d3 {[%emt 0:01:53]} 38. Ke3 {[%emt 0:00:05]} f6 {[%emt 0:03:50]} 39. Qd5+ {[%emt 0:07:50]} Qxd5 {[%emt 0:00:09]} 40. Nxd5 {[%emt 0:00:01]} fxe5 {[%emt 0:00:25]} 41. Nb6 {[%emt 0:00:02]} Kf7 {[%emt 0:01:57]} 42. Nxa4 {[%emt 0:00:06]} e4 {[%emt 0:00:28]} 43. Nc5 {[%emt 0:00:07]} b5 {[%emt 0:00:37]} 44. Nb3 {[%emt 0:00:27]} Ke6 {[%emt 0:00:33]} 45. Nd4+ {[%emt 0:03:04]} Kd5 {[%emt 0:00:00]} 46. Nxb5 {[%emt 0:00:06]} Kc4 {[%emt 0:00:01]} 47. a4 {[%emt 0:00:04]} Kb4 {[%emt 0:01:22]} 48. Nc3 {[%emt 0:00:26]} h5 {[%emt 0:00:31]} 49. gxh5 {[%emt 0:00:26]} Bf5 {[%emt 0:00:15]} 50. Kd2 {[%emt 0:00:29]} Bh7 {[%emt 0:00:52]} 51. Ke3 {[%emt 0:00:16]} Bf5 {[%emt 0:00:03]} 52. Kd2 {[%emt 0:00:03]} Bh7 {[%emt 0:00:51]} 53. Ke3 {[%emt 0:00:12]} Bf5 {[%emt 0:00:03]} 1/2-1/2